[Event "*** Titled Tuesday Blitz"]
[Site "Chess.com"]
[Date "2019.04.02"]
[Round "7"]
[White "VitaliyBernadskiy"]
[Black "wonderfultime"]
[Result "1-0"]
[WhiteElo "2752"]
[BlackElo "2899"]
[TimeControl "180+2"]
[EndTime "15:33:41 PDT"]
[Termination "VitaliyBernadskiy won by resignation"]

1. e4 {[%clk 0:03:01.9]} 1... c5 {[%clk 0:02:56.1]} 2. Nf3 {[%clk 0:03:02.6]}
2... Nf6 {[%clk 0:02:57.1]} 3. Nc3 {[%clk 0:02:56.7]} 3... d5 {[%clk 0:02:58.2]}
4. Bb5+ {[%clk 0:02:52.8]} 4... Bd7 {[%clk 0:02:58.1]} 5. e5 {[%clk 0:02:53.1]}
5... Bxb5 {[%clk 0:02:51.3]} 6. Nxb5 {[%clk 0:02:55]} 6... Nfd7 {[%clk
0:02:52.8]} 7. e6 {[%clk 0:02:49.9]} 7... fxe6 {[%clk 0:02:53.9]} 8. Ng5 {[%clk
0:02:49.5]} 8... Qb6 {[%clk 0:02:08.9]} 9. Qe2 {[%clk 0:02:49.3]} 9... a6 {[%clk
0:02:00.4]} 10. Nc3 {[%clk 0:02:50.2]} 10... Nf6 {[%clk 0:01:44]} 11. Qxe6
{[%clk 0:02:45]} 11... Qxe6+ {[%clk 0:01:29.4]} 12. Nxe6 {[%clk 0:02:46.9]}
12... Kf7 {[%clk 0:01:24.8]} 13. Nc7 {[%clk 0:02:47.6]} 13... Ra7 {[%clk
0:01:21.7]} 14. N7xd5 {[%clk 0:02:48.4]} 14... e6 {[%clk 0:01:21.2]} 15. Ne3
{[%clk 0:02:49.5]} 15... Nc6 {[%clk 0:01:21]} 16. O-O {[%clk 0:02:51.4]} 16...
b5 {[%clk 0:01:22.1]} 17. Ne2 {[%clk 0:02:51.4]} 17... g6 {[%clk 0:01:20.2]} 18.
b3 {[%clk 0:02:49.9]} 18... Bg7 {[%clk 0:01:21.4]} 19. Bb2 {[%clk 0:02:51.4]}
19... Rd8 {[%clk 0:01:23.3]} 20. d3 {[%clk 0:02:52.6]} 20... Nd5 {[%clk
0:01:23.5]} 21. Bxg7 {[%clk 0:02:52.2]} 21... Kxg7 {[%clk 0:01:25.3]} 22. Nxd5
{[%clk 0:02:51.9]} 22... exd5 {[%clk 0:01:25.9]} 23. c3 {[%clk 0:02:49.4]} 23...
Re7 {[%clk 0:01:24.7]} 24. Rfe1 {[%clk 0:02:46]} 24... Rde8 {[%clk 0:01:13.8]}
25. Kf1 {[%clk 0:02:46.5]} 25... g5 {[%clk 0:01:03.5]} 26. Ng3 {[%clk
0:02:39.7]} 26... Kf6 {[%clk 0:01:05]} 27. Rxe7 {[%clk 0:02:38.6]} 27... Rxe7
{[%clk 0:01:06.9]} 28. Re1 {[%clk 0:02:39.3]} 28... a5 {[%clk 0:00:20.9]} 29.
Rxe7 {[%clk 0:02:39.3]} 29... Kxe7 {[%clk 0:00:20.2]} 30. Ke2 {[%clk 0:02:41.2]}
30... a4 {[%clk 0:00:21.1]} 31. Kd2 {[%clk 0:02:41.2]} 31... axb3 {[%clk
0:00:21.9]} 32. axb3 {[%clk 0:02:43.1]} 32... Ke6 {[%clk 0:00:23.5]} 33. Ne2
{[%clk 0:02:40.7]} 33... Ne5 {[%clk 0:00:24.3]} 34. f4 {[%clk 0:02:40.9]} 34...
gxf4 {[%clk 0:00:23.9]} 35. Nxf4+ {[%clk 0:02:42.8]} 35... Kd6 {[%clk
0:00:25.5]} 36. d4 {[%clk 0:02:40.6]} 36... cxd4 {[%clk 0:00:22.9]} 37. cxd4
{[%clk 0:02:42.5]} 37... Nc6 {[%clk 0:00:24.8]} 38. Kd3 {[%clk 0:02:36.2]} 38...
b4 {[%clk 0:00:23.3]} 39. g4 {[%clk 0:02:16.7]} 39... Na5 {[%clk 0:00:24.5]} 40.
Kc2 {[%clk 0:02:15.5]} 40... Nc6 {[%clk 0:00:26.1]} 41. Ne2 {[%clk 0:02:17]}
41... Ke6 {[%clk 0:00:26.3]} 42. h4 {[%clk 0:02:18.1]} 42... h6 {[%clk 0:00:25]}
43. Kd2 {[%clk 0:02:12.4]} 43... Kd6 {[%clk 0:00:22.3]} 44. Ke3 {[%clk
0:02:11.6]} 44... Na5 {[%clk 0:00:22.8]} 45. Nc1 {[%clk 0:02:13.1]} 45... Ke6
{[%clk 0:00:21.2]} 46. Nd3 {[%clk 0:01:50.9]} 46... Nxb3 {[%clk 0:00:22.1]} 47.
Nc5+ {[%clk 0:01:45.7]} 47... Nxc5 {[%clk 0:00:23]} 48. dxc5 {[%clk 0:01:47.6]}
48... b3 {[%clk 0:00:12.4]} 49. Kd3 {[%clk 0:01:48.7]} 49... d4 {[%clk
0:00:14.3]} 50. g5 {[%clk 0:01:50.1]} 50... hxg5 {[%clk 0:00:16.2]} 51. hxg5
{[%clk 0:01:51.8]} 51... Kd5 {[%clk 0:00:11.3]} 52. g6 {[%clk 0:01:52.4]} 52...
Kxc5 {[%clk 0:00:13.2]} 53. g7 {[%clk 0:01:53.1]} 53... Kb4 {[%clk 0:00:15.1]}
54. g8=Q {[%clk 0:01:53.8]} 54... Ka3 {[%clk 0:00:17]} 55. Qa8+ {[%clk
0:01:50.6]} 55... Kb2 {[%clk 0:00:17.7]} 56. Qa4 {[%clk 0:01:41]} 1-0

[Event "*** Titled Tuesday Blitz"]
[Site "Chess.com"]
[Date "2019.04.02"]
[Round "7"]
[White "Davor_Rogic"]
[Black "SabinaFoisor"]
[Result "1/2-1/2"]
[WhiteElo "2375"]
[BlackElo "2228"]
[TimeControl "180+2"]
[EndTime "15:33:47 PDT"]
[Termination "Game drawn by repetition"]

1. e4 {[%clk 0:03:01.6]} 1... e5 {[%clk 0:03:00.7]} 2. Nf3 {[%clk 0:03:01.3]}
2... Nc6 {[%clk 0:03:01.7]} 3. Bb5 {[%clk 0:02:57.6]} 3... Nf6 {[%clk
0:03:02.2]} 4. Nc3 {[%clk 0:02:51.2]} 4... Bc5 {[%clk 0:03:00.7]} 5. O-O {[%clk
0:02:50.5]} 5... d6 {[%clk 0:02:59.9]} 6. d4 {[%clk 0:02:50.8]} 6... exd4 {[%clk
0:02:57.6]} 7. Nxd4 {[%clk 0:02:52.7]} 7... Bd7 {[%clk 0:02:57.2]} 8. Nxc6
{[%clk 0:02:53.2]} 8... Bxc6 {[%clk 0:02:58]} 9. Bxc6+ {[%clk 0:02:54.1]} 9...
bxc6 {[%clk 0:02:59.9]} 10. Qd3 {[%clk 0:02:52.2]} 10... O-O {[%clk 0:02:13.9]}
11. Bg5 {[%clk 0:02:48.8]} 11... h6 {[%clk 0:02:13.7]} 12. Bh4 {[%clk
0:02:49.6]} 12... Re8 {[%clk 0:02:11.6]} 13. Rfe1 {[%clk 0:02:44.5]} 13... Re6
{[%clk 0:02:10.3]} 14. Rad1 {[%clk 0:02:43.5]} 14... Qe8 {[%clk 0:02:08.9]} 15.
Bxf6 {[%clk 0:02:30.9]} 15... Rxf6 {[%clk 0:02:09.6]} 16. Re2 {[%clk 0:02:24.6]}
16... Qe5 {[%clk 0:02:04.8]} 17. Na4 {[%clk 0:02:18.5]} 17... Bb6 {[%clk
0:01:53.7]} 18. Qc3 {[%clk 0:02:16]} 18... Qh5 {[%clk 0:01:43.9]} 19. Rde1
{[%clk 0:02:02.7]} 19... Qb5 {[%clk 0:01:31.6]} 20. Nxb6 {[%clk 0:02:02.7]}
20... axb6 {[%clk 0:01:31.9]} 21. a3 {[%clk 0:02:02.1]} 21... Re8 {[%clk
0:01:28.8]} 22. f3 {[%clk 0:01:58.8]} 22... Rfe6 {[%clk 0:01:26.6]} 23. Kf2
{[%clk 0:01:57.8]} 23... f5 {[%clk 0:01:15.8]} 24. Qd3 {[%clk 0:01:15.7]} 24...
Qxb2 {[%clk 0:01:02.5]} 25. exf5 {[%clk 0:01:16]} 25... Rxe2+ {[%clk 0:01:02.6]}
26. Rxe2 {[%clk 0:01:17.9]} 26... Rxe2+ {[%clk 0:01:02.6]} 27. Qxe2 {[%clk
0:01:19.5]} 27... Kf8 {[%clk 0:00:59.7]} 28. g4 {[%clk 0:01:14]} 28... Qxa3
{[%clk 0:00:59.6]} 29. Qe6 {[%clk 0:01:11.5]} 29... Qc5+ {[%clk 0:00:56.6]} 30.
Kf1 {[%clk 0:01:04.5]} 30... b5 {[%clk 0:00:23.7]} 31. Qc8+ {[%clk 0:01:04.1]}
31... Kf7 {[%clk 0:00:24.1]} 32. Qxc7+ {[%clk 0:01:05.3]} 32... Kf6 {[%clk
0:00:25]} 33. Qd8+ {[%clk 0:01:05.9]} 33... Ke5 {[%clk 0:00:26]} 34. Qe7+ {[%clk
0:01:05.2]} 34... Kf4 {[%clk 0:00:26.2]} 35. Qe4+ {[%clk 0:01:02.1]} 35... Kg5
{[%clk 0:00:26]} 36. Kg2 {[%clk 0:00:46.1]} 36... Qe5 {[%clk 0:00:20]} 37. Qxc6
{[%clk 0:00:23.1]} 37... Qe2+ {[%clk 0:00:20.6]} 38. Kg1 {[%clk 0:00:21.2]}
38... Qe1+ {[%clk 0:00:21.3]} 39. Kg2 {[%clk 0:00:22.4]} 39... Qe2+ {[%clk
0:00:22.6]} 40. Kg1 {[%clk 0:00:22.7]} 40... Qe1+ {[%clk 0:00:21.1]} 41. Kg2
{[%clk 0:00:23]} 41... Qe2+ {[%clk 0:00:22.4]} 42. Kg1 {[%clk 0:00:24.3]} 42...
Qe1+ {[%clk 0:00:23.8]} 43. Kg2 {[%clk 0:00:25.8]} 43... Qe2+ {[%clk 0:00:25.1]}
1/2-1/2

[Event "*** Titled Tuesday Blitz"]
[Site "Chess.com"]
[Date "2019.04.02"]
[Round "7"]
[White "djogrodek1"]
[Black "Benjoneliere44"]
[Result "0-1"]
[WhiteElo "2524"]
[BlackElo "2494"]
[TimeControl "180+2"]
[EndTime "15:33:54 PDT"]
[Termination "Benjoneliere44 won on time"]

1. e4 {[%clk 0:02:59]} 1... c5 {[%clk 0:02:54.8]} 2. Nf3 {[%clk 0:02:58.3]} 2...
e6 {[%clk 0:02:55]} 3. d4 {[%clk 0:02:57.6]} 3... cxd4 {[%clk 0:02:56.9]} 4.
Nxd4 {[%clk 0:02:59.3]} 4... Nc6 {[%clk 0:02:58.4]} 5. Nc3 {[%clk 0:02:59.5]}
5... Qc7 {[%clk 0:02:59.4]} 6. g3 {[%clk 0:03:00.2]} 6... b6 {[%clk 0:02:56.5]}
7. Ncb5 {[%clk 0:02:56.6]} 7... Qb8 {[%clk 0:02:57.2]} 8. Bg2 {[%clk 0:02:48.1]}
8... Bb7 {[%clk 0:02:48.9]} 9. O-O {[%clk 0:02:46.2]} 9... a6 {[%clk 0:02:47.6]}
10. Nc3 {[%clk 0:02:39.9]} 10... Nf6 {[%clk 0:02:41.6]} 11. Be3 {[%clk
0:02:32.9]} 11... Be7 {[%clk 0:02:35]} 12. Qe2 {[%clk 0:02:19.2]} 12... O-O
{[%clk 0:02:28.1]} 13. Rad1 {[%clk 0:02:08.6]} 13... b5 {[%clk 0:02:27]} 14. Bf4
{[%clk 0:01:56.9]} 14... Nxd4 {[%clk 0:02:25.9]} 15. Rxd4 {[%clk 0:01:35.9]}
15... e5 {[%clk 0:02:25.6]} 16. Nd5 {[%clk 0:01:37.4]} 16... Bd8 {[%clk
0:02:18.9]} 17. Nxf6+ {[%clk 0:01:24.8]} 17... Bxf6 {[%clk 0:02:18.9]} 18. Rxd7
{[%clk 0:01:24.8]} 18... Bc6 {[%clk 0:01:59.1]} 19. Rd3 {[%clk 0:00:30.6]} 19...
exf4 {[%clk 0:01:54.2]} 20. e5 {[%clk 0:00:32]} 20... f3 {[%clk 0:01:53.9]} 21.
Bxf3 {[%clk 0:00:31.9]} 21... Bxf3 {[%clk 0:01:52.9]} 22. Qxf3 {[%clk
0:00:33.8]} 22... Qxe5 {[%clk 0:01:48.6]} 23. b3 {[%clk 0:00:35.1]} 23... Rad8
{[%clk 0:01:46.1]} 24. Rfd1 {[%clk 0:00:35.9]} 24... Rxd3 {[%clk 0:01:44.8]} 25.
Rxd3 {[%clk 0:00:37.8]} 25... Re8 {[%clk 0:01:34]} 26. Re3 {[%clk 0:00:29.3]}
26... Qb8 {[%clk 0:01:34.5]} 27. Qb7 {[%clk 0:00:24.9]} 27... h6 {[%clk
0:01:22.1]} 28. Rxe8+ {[%clk 0:00:15.4]} 28... Qxe8 {[%clk 0:01:24]} 29. Qxa6
{[%clk 0:00:17.3]} 29... Qe1+ {[%clk 0:01:19.9]} 30. Kg2 {[%clk 0:00:18.1]}
30... Qe4+ {[%clk 0:01:17.6]} 31. Kg1 {[%clk 0:00:08.3]} 31... b4 {[%clk
0:01:07.1]} 32. Qc8+ {[%clk 0:00:06.7]} 32... Kh7 {[%clk 0:01:06.8]} 33. Qd7
{[%clk 0:00:05.9]} 33... Kg6 {[%clk 0:00:54.1]} 34. h4 {[%clk 0:00:06.1]} 34...
h5 {[%clk 0:00:54.4]} 35. Qd1 {[%clk 0:00:06.1]} 35... Bd4 {[%clk 0:00:53.2]}
36. Qd2 {[%clk 0:00:06.1]} 36... f6 {[%clk 0:00:50]} 37. Kh2 {[%clk 0:00:03.3]}
37... Bc5 {[%clk 0:00:43]} 0-1

[Event "*** Titled Tuesday Blitz"]
[Site "Chess.com"]
[Date "2019.04.02"]
[Round "7"]
[White "iturrizaga"]
[Black "dreamist"]
[Result "0-1"]
[WhiteElo "2864"]
[BlackElo "2744"]
[TimeControl "180+2"]
[EndTime "15:33:55 PDT"]
[Termination "dreamist won on time"]

1. c4 {[%clk 0:03:01.9]} 1... e5 {[%clk 0:03:00.6]} 2. Nc3 {[%clk 0:03:03.1]}
2... Nf6 {[%clk 0:03:01.7]} 3. Nf3 {[%clk 0:03:04.3]} 3... Nc6 {[%clk
0:03:02.3]} 4. e3 {[%clk 0:03:05.5]} 4... Bb4 {[%clk 0:03:02.7]} 5. Qc2 {[%clk
0:03:06.7]} 5... Bxc3 {[%clk 0:03:02.7]} 6. bxc3 {[%clk 0:02:54.7]} 6... e4
{[%clk 0:03:00.7]} 7. Nd4 {[%clk 0:02:54.7]} 7... Ne5 {[%clk 0:02:56.5]} 8. f4
{[%clk 0:02:53.4]} 8... exf3 {[%clk 0:02:56.8]} 9. Nxf3 {[%clk 0:02:52.5]} 9...
d6 {[%clk 0:02:45.7]} 10. Be2 {[%clk 0:02:49.6]} 10... O-O {[%clk 0:02:44.1]}
11. O-O {[%clk 0:02:46.8]} 11... Bg4 {[%clk 0:02:45.2]} 12. d4 {[%clk 0:02:46]}
12... Nxf3+ {[%clk 0:02:42.1]} 13. gxf3 {[%clk 0:02:47.9]} 13... Bh3 {[%clk
0:02:40.6]} 14. Rf2 {[%clk 0:02:40.3]} 14... Re8 {[%clk 0:02:31.4]} 15. Bd2
{[%clk 0:02:22.7]} 15... Nh5 {[%clk 0:02:27.2]} 16. Bf1 {[%clk 0:01:34.6]} 16...
Qg5+ {[%clk 0:02:20.1]} 17. Bg2 {[%clk 0:01:19.7]} 17... Qh4 {[%clk 0:02:12.7]}
18. Bxh3 {[%clk 0:01:04.1]} 18... Qxh3 {[%clk 0:02:13.4]} 19. Raf1 {[%clk
0:01:04.9]} 19... Re6 {[%clk 0:02:10]} 20. Rg2 {[%clk 0:01:06]} 20... c6 {[%clk
0:01:58.9]} 21. e4 {[%clk 0:01:03.9]} 21... Rf6 {[%clk 0:01:44]} 22. Rff2 {[%clk
0:00:35.1]} 22... Rxf3 {[%clk 0:01:39.2]} 23. Qb3 {[%clk 0:00:13.3]} 23... b6
{[%clk 0:01:32.7]} 24. c5 {[%clk 0:00:13.4]} 24... dxc5 {[%clk 0:01:29.5]} 25.
Qc4 {[%clk 0:00:14.3]} 25... Rxf2 {[%clk 0:01:20.5]} 26. Rxf2 {[%clk 0:00:14.8]}
26... Qg4+ {[%clk 0:01:21.5]} 27. Kf1 {[%clk 0:00:16.2]} 27... Nf6 {[%clk
0:01:10.6]} 28. e5 {[%clk 0:00:14]} 28... Nd5 {[%clk 0:01:11.2]} 29. Qd3 {[%clk
0:00:13.6]} 29... cxd4 {[%clk 0:01:09.6]} 30. cxd4 {[%clk 0:00:15.5]} 30... Rd8
{[%clk 0:01:01.8]} 31. h3 {[%clk 0:00:16.9]} 31... Qg6 {[%clk 0:00:59]} 32. Qf3
{[%clk 0:00:17.4]} 32... c5 {[%clk 0:00:54.9]} 33. dxc5 {[%clk 0:00:17.6]} 33...
bxc5 {[%clk 0:00:55.8]} 34. Rg2 {[%clk 0:00:18.8]} 34... Qe6 {[%clk 0:00:40.3]}
35. Bg5 {[%clk 0:00:17]} 35... Rb8 {[%clk 0:00:37.5]} 36. Qg3 {[%clk 0:00:08.5]}
36... Rb1+ {[%clk 0:00:35.4]} 37. Kf2 {[%clk 0:00:09.9]} 37... Qf5+ {[%clk
0:00:32.6]} 38. Qf3 {[%clk 0:00:09.6]} 38... Rf1+ {[%clk 0:00:33.1]} 0-1

[Event "*** Titled Tuesday Blitz"]
[Site "Chess.com"]
[Date "2019.04.02"]
[Round "7"]
[White "JonahWillow"]
[Black "m3alam"]
[Result "1-0"]
[WhiteElo "2699"]
[BlackElo "2434"]
[TimeControl "180+2"]
[EndTime "15:34:00 PDT"]
[Termination "JonahWillow won on time"]

1. e4 {[%clk 0:03:01.9]} 1... c6 {[%clk 0:03:01.6]} 2. d4 {[%clk 0:03:02.8]}
2... d5 {[%clk 0:03:03.5]} 3. Nc3 {[%clk 0:03:00.4]} 3... dxe4 {[%clk
0:02:56.8]} 4. Nxe4 {[%clk 0:03:02.3]} 4... Bf5 {[%clk 0:02:57.7]} 5. Nc5 {[%clk
0:02:32.2]} 5... e5 {[%clk 0:02:57.7]} 6. Nxb7 {[%clk 0:02:23.1]} 6... Qb6
{[%clk 0:02:58.4]} 7. Nc5 {[%clk 0:02:21]} 7... exd4 {[%clk 0:02:58]} 8. Na4
{[%clk 0:02:20.9]} 8... Qa5+ {[%clk 0:02:55.2]} 9. c3 {[%clk 0:02:22.1]} 9... d3
{[%clk 0:02:52.2]} 10. Nf3 {[%clk 0:02:03.5]} 10... Na6 {[%clk 0:02:49.3]} 11.
g3 {[%clk 0:02:01.7]} 11... Bd6 {[%clk 0:02:40.2]} 12. Bg2 {[%clk 0:02:00.1]}
12... Be4 {[%clk 0:02:33.8]} 13. O-O {[%clk 0:01:58.1]} 13... Nf6 {[%clk
0:02:27.6]} 14. Re1 {[%clk 0:01:55]} 14... O-O {[%clk 0:02:24.5]} 15. b4 {[%clk
0:01:45.6]} 15... Qd5 {[%clk 0:02:14.1]} 16. Nb2 {[%clk 0:01:36.6]} 16... Rad8
{[%clk 0:02:08.1]} 17. c4 {[%clk 0:01:34.5]} 17... Qh5 {[%clk 0:02:05]} 18. c5
{[%clk 0:01:30.8]} 18... Be5 {[%clk 0:02:00.8]} 19. a3 {[%clk 0:01:29.7]} 19...
Bc3 {[%clk 0:01:57.2]} 20. Re3 {[%clk 0:01:23.1]} 20... Rfe8 {[%clk 0:01:52.9]}
21. Rb1 {[%clk 0:01:14.9]} 21... Nc7 {[%clk 0:01:49.9]} 22. Bd2 {[%clk
0:01:10.8]} 22... Bxb2 {[%clk 0:01:46.2]} 23. Rxb2 {[%clk 0:01:12]} 23... Nb5
{[%clk 0:01:40.3]} 24. h3 {[%clk 0:00:59]} 24... Nxa3 {[%clk 0:01:37.1]} 25. Re1
{[%clk 0:00:53.8]} 25... Nc2 {[%clk 0:01:31.1]} 26. Rf1 {[%clk 0:00:53.5]} 26...
Qf5 {[%clk 0:01:26.2]} 27. g4 {[%clk 0:00:45.2]} 27... Nxg4 {[%clk 0:00:53.7]}
28. Nh4 {[%clk 0:00:41.4]} 28... Qe5 {[%clk 0:00:46.2]} 29. Qxg4 {[%clk
0:00:40.4]} 29... Bxg2 {[%clk 0:00:44.1]} 30. Rfb1 {[%clk 0:00:30.4]} 30... Bd5
{[%clk 0:00:30.1]} 31. Qg3 {[%clk 0:00:28.4]} 31... Qe4 {[%clk 0:00:28.6]} 32.
Kh2 {[%clk 0:00:28]} 32... Re6 {[%clk 0:00:19.2]} 33. Rg1 {[%clk 0:00:24.4]}
33... Qd4 {[%clk 0:00:15.6]} 34. Rxc2 {[%clk 0:00:18.8]} 34... dxc2 {[%clk
0:00:15.2]} 35. Bc3 {[%clk 0:00:19.9]} 35... Rg6 {[%clk 0:00:02]} 36. Nxg6
{[%clk 0:00:18.6]} 1-0

[Event "*** Titled Tuesday Blitz"]
[Site "Chess.com"]
[Date "2019.04.02"]
[Round "7"]
[White "STAYFlow"]
[Black "Alex_Molchanov"]
[Result "0-1"]
[WhiteElo "2245"]
[BlackElo "2470"]
[TimeControl "180+2"]
[EndTime "15:34:11 PDT"]
[Termination "Alex_Molchanov won by resignation"]

1. d4 {[%clk 0:03:01.9]} 1... Nf6 {[%clk 0:03:00.5]} 2. c4 {[%clk 0:03:03]} 2...
e6 {[%clk 0:03:02]} 3. g3 {[%clk 0:03:04.1]} 3... d5 {[%clk 0:03:02.4]} 4. Nf3
{[%clk 0:03:04.7]} 4... Bb4+ {[%clk 0:03:02]} 5. Bd2 {[%clk 0:03:04.2]} 5... Bd6
{[%clk 0:03:03.4]} 6. Nc3 {[%clk 0:02:49.4]} 6... c6 {[%clk 0:03:01.1]} 7. Qc2
{[%clk 0:02:46.6]} 7... O-O {[%clk 0:03:00.8]} 8. e4 {[%clk 0:02:39.2]} 8...
dxe4 {[%clk 0:02:57.2]} 9. Nxe4 {[%clk 0:02:41.1]} 9... Nxe4 {[%clk 0:02:56.1]}
10. Qxe4 {[%clk 0:02:42.7]} 10... f5 {[%clk 0:02:57.7]} 11. Qe2 {[%clk
0:02:28.4]} 11... Qe7 {[%clk 0:02:46.8]} 12. Bg2 {[%clk 0:02:28]} 12... Nd7
{[%clk 0:02:47.9]} 13. O-O {[%clk 0:02:23.7]} 13... e5 {[%clk 0:02:48.8]} 14.
dxe5 {[%clk 0:02:18.4]} 14... Nxe5 {[%clk 0:02:49.9]} 15. Rfe1 {[%clk
0:02:13.3]} 15... Nxf3+ {[%clk 0:02:48]} 16. Qxf3 {[%clk 0:02:14.3]} 16... Qf7
{[%clk 0:02:43.9]} 17. Rac1 {[%clk 0:02:08.3]} 17... Be6 {[%clk 0:02:33.4]} 18.
Rxe6 {[%clk 0:02:06.9]} 18... Qxe6 {[%clk 0:02:32.3]} 19. c5 {[%clk 0:02:04.9]}
19... Bc7 {[%clk 0:02:23.9]} 20. Bf1 {[%clk 0:02:05.1]} 20... Kh8 {[%clk
0:02:24]} 21. Bc4 {[%clk 0:02:05]} 21... Qf6 {[%clk 0:02:17.7]} 22. b4 {[%clk
0:01:47.7]} 22... Rad8 {[%clk 0:02:13.3]} 23. Be1 {[%clk 0:01:30.5]} 23... Rfe8
{[%clk 0:01:51]} 24. Kg2 {[%clk 0:01:18.5]} 24... f4 {[%clk 0:01:36.6]} 25. g4
{[%clk 0:01:02.7]} 25... Qb2 {[%clk 0:01:37.1]} 26. Qc3 {[%clk 0:01:00.3]} 26...
Qxc3 {[%clk 0:01:29.2]} 27. Bxc3 {[%clk 0:01:02.2]} 27... Be5 {[%clk 0:01:25.2]}
28. Bf7 {[%clk 0:00:44.1]} 28... Re7 {[%clk 0:01:17.6]} 29. Re1 {[%clk
0:00:45.3]} 29... f3+ {[%clk 0:00:57.6]} 30. Kh3 {[%clk 0:00:45.6]} 30... Rxf7
{[%clk 0:00:53.2]} 31. Rxe5 {[%clk 0:00:40.3]} 31... Kg8 {[%clk 0:00:53.7]} 32.
Re3 {[%clk 0:00:39.8]} 32... Rfd7 {[%clk 0:00:47.3]} 33. Re4 {[%clk 0:00:15.8]}
33... Rd3 {[%clk 0:00:40.8]} 34. Be5 {[%clk 0:00:15.9]} 34... Re8 {[%clk
0:00:40.4]} 35. Kg3 {[%clk 0:00:17.1]} 35... Rd5 {[%clk 0:00:31.1]} 36. Kf4
{[%clk 0:00:18.2]} 36... Rd2 {[%clk 0:00:21.8]} 37. Kxf3 {[%clk 0:00:17.6]}
37... Rxa2 {[%clk 0:00:22]} 38. g5 {[%clk 0:00:04.3]} 38... a5 {[%clk
0:00:20.4]} 39. bxa5 {[%clk 0:00:04.8]} 39... Rxa5 {[%clk 0:00:22.3]} 40. Kf4
{[%clk 0:00:05.1]} 40... Rxc5 {[%clk 0:00:22.6]} 41. h4 {[%clk 0:00:04.4]} 41...
b5 {[%clk 0:00:21.4]} 0-1

[Event "*** Titled Tuesday Blitz"]
[Site "Chess.com"]
[Date "2019.04.02"]
[Round "7"]
[White "Vuk2000"]
[Black "Benek77"]
[Result "0-1"]
[WhiteElo "2711"]
[BlackElo "2675"]
[TimeControl "180+2"]
[EndTime "15:34:13 PDT"]
[Termination "Benek77 won by resignation"]

1. e4 {[%clk 0:03:01.9]} 1... c5 {[%clk 0:02:59.4]} 2. Nc3 {[%clk 0:03:01.6]}
2... Nc6 {[%clk 0:02:59.6]} 3. g3 {[%clk 0:03:02.4]} 3... g6 {[%clk 0:02:57.9]}
4. Bg2 {[%clk 0:03:03]} 4... Bg7 {[%clk 0:02:59.8]} 5. d3 {[%clk 0:03:03.4]}
5... Rb8 {[%clk 0:02:59.3]} 6. Be3 {[%clk 0:03:03.6]} 6... b5 {[%clk 0:02:58.7]}
7. Qd2 {[%clk 0:03:03.7]} 7... b4 {[%clk 0:02:57.9]} 8. Nd1 {[%clk 0:03:04]}
8... d6 {[%clk 0:02:58.1]} 9. f4 {[%clk 0:03:03.7]} 9... e6 {[%clk 0:02:57.3]}
10. Ne2 {[%clk 0:02:53.5]} 10... Nge7 {[%clk 0:02:58]} 11. O-O {[%clk
0:02:51.1]} 11... O-O {[%clk 0:02:58.9]} 12. a3 {[%clk 0:02:51.7]} 12... b3
{[%clk 0:02:53.9]} 13. c3 {[%clk 0:02:45.6]} 13... a5 {[%clk 0:02:52.4]} 14. e5
{[%clk 0:02:41]} 14... Bb7 {[%clk 0:02:35.2]} 15. exd6 {[%clk 0:02:33.8]} 15...
Qxd6 {[%clk 0:02:36.1]} 16. Nf2 {[%clk 0:02:35.1]} 16... Rfd8 {[%clk 0:02:33.9]}
17. Ne4 {[%clk 0:02:06.3]} 17... Qxd3 {[%clk 0:02:32.3]} 18. Qxd3 {[%clk
0:02:07.3]} 18... Rxd3 {[%clk 0:02:34.2]} 19. Bxc5 {[%clk 0:02:08.4]} 19... f5
{[%clk 0:02:30]} 20. Nd6 {[%clk 0:01:50.9]} 20... Rd2 {[%clk 0:02:13.3]} 21.
Nxb7 {[%clk 0:01:50.1]} 21... Rxe2 {[%clk 0:02:14.5]} 22. Bxe7 {[%clk
0:01:42.7]} 22... Rxb7 {[%clk 0:02:01.4]} 23. Bxc6 {[%clk 0:01:27.8]} 23... Rxe7
{[%clk 0:02:02.1]} 24. Rf2 {[%clk 0:01:29.1]} 24... Rxf2 {[%clk 0:01:18.8]} 25.
Kxf2 {[%clk 0:01:31]} 25... Rc7 {[%clk 0:01:19.8]} 26. Ba4 {[%clk 0:01:29.1]}
26... Rb7 {[%clk 0:01:10.8]} 27. Rd1 {[%clk 0:01:24.4]} 27... Kf7 {[%clk
0:01:08.6]} 28. Ke3 {[%clk 0:00:25.2]} 28... Ke7 {[%clk 0:01:06.7]} 29. Kd3
{[%clk 0:00:19.8]} 29... e5 {[%clk 0:00:43.1]} 30. fxe5 {[%clk 0:00:19.9]} 30...
Bxe5 {[%clk 0:00:45]} 31. Kc4 {[%clk 0:00:21.2]} 31... Kf6 {[%clk 0:00:45.6]}
32. Bxb3 {[%clk 0:00:21.3]} 32... a4 {[%clk 0:00:47]} 33. Bxa4 {[%clk
0:00:22.2]} 33... Rxb2 {[%clk 0:00:48.9]} 34. Bc6 {[%clk 0:00:10.7]} 34... Rxh2
{[%clk 0:00:45.2]} 35. a4 {[%clk 0:00:11.6]} 35... Bxg3 {[%clk 0:00:39.4]} 36.
Ra1 {[%clk 0:00:09.8]} 36... Rc2 {[%clk 0:00:37]} 37. Kb3 {[%clk 0:00:07.1]}
37... Rxc3+ {[%clk 0:00:37.7]} 38. Kxc3 {[%clk 0:00:02.7]} 38... Be5+ {[%clk
0:00:38.9]} 39. Kc4 {[%clk 0:00:03.9]} 39... Bxa1 {[%clk 0:00:40.8]} 40. Kd5
{[%clk 0:00:05.1]} 40... Bc3 {[%clk 0:00:38.3]} 41. Kc4 {[%clk 0:00:06]} 41...
Be1 {[%clk 0:00:38.9]} 42. Kb5 {[%clk 0:00:05.9]} 42... g5 {[%clk 0:00:40]} 43.
a5 {[%clk 0:00:07.8]} 43... g4 {[%clk 0:00:40.8]} 44. a6 {[%clk 0:00:08.9]} 0-1